[Event "Tata Steel-A 80th"]
[Site "Wijk aan Zee"]
[Date "2018.01.17"]
[Round "5"]
[White "Matlakov, Maxim"]
[Black "Karjakin, Sergey"]
[Result "1/2-1/2"]
[ECO "A07"]
[WhiteElo "2718"]
[BlackElo "2753"]
[PlyCount "32"]
[EventDate "2018.01.13"]
[EventType "tourn"]
[EventRounds "13"]
[EventCountry "NED"]
[EventCategory "20"]
[SourceTitle "CBM 183"]
[Source "ChessBase"]
[SourceDate "2018.03.14"]
[SourceVersion "1"]
[SourceVersionDate "2018.03.14"]
[SourceQuality "1"]
[TimeControl "40/6000+30:20/3000+30:900+30"]

1. Nf3 {[%emt 0:00:00]} d5 {[%emt 0:00:10]} 2. g3 {[%emt 0:00:00]} c6 {[%emt 0:
00:27]} 3. Bg2 {[%emt 0:00:00]} Nf6 {[%emt 0:00:08]} 4. O-O {[%emt 0:00:20]}
Bg4 {[%emt 0:00:21]} 5. h3 {[%emt 0:00:32]} Bh5 {[%emt 0:00:28]} 6. d4 {
[%emt 0:00:52]} e6 {[%emt 0:00:50]} 7. c4 {[%emt 0:02:52]} Be7 {[%emt 0:04:10]}
8. Nc3 {[%emt 0:02:21]} O-O {[%emt 0:05:27]} 9. Ne5 {[%emt 0:05:41]} Nbd7 {
[%emt 0:21:38]} 10. g4 {[%emt 0:05:18]} Bg6 {[%emt 0:00:11]} 11. Nxg6 {[%emt 0:
22:02]} hxg6 {[%emt 0:00:39]} 12. Qd3 {[%emt 0:00:42]} Ne8 {[%emt 0:08:54]} 13.
cxd5 {[%emt 0:18:16]} exd5 {[%emt 0:00:59]} 14. Rb1 {[%emt 0:01:37]} a5 {
[%emt 0:06:48]} 15. a3 {[%emt 0:04:12]} Nd6 {[%emt 0:05:23]} 16. b4 {[%emt 0:
02:40] The game between Maxim Matlakov and Sergey Karjakin was less forced,
but the result was the same as between Anand and Wei. In a position on move 17
in which both sides could still play on, Matlakov and Karjakin shook hands}
axb4 {[%emt 0:00:56]} (16... axb4 17. e4 {Karjakin felt the game would see
simplifying exchanges, yet with unbalanced material and pawn structure, once
wonders if another pairing with the same moves would not have continued})
1/2-1/2

[Event "Tata Steel-A 80th"]
[Site "Wijk aan Zee"]
[Date "2018.01.17"]
[Round "5"]
[White "So, Wesley"]
[Black "Adhiban, Baskaran"]
[Result "1-0"]
[ECO "A21"]
[WhiteElo "2792"]
[BlackElo "2655"]
[PlyCount "159"]
[EventDate "2018.01.13"]
[EventType "tourn"]
[EventRounds "13"]
[EventCountry "NED"]
[EventCategory "20"]
[SourceTitle "CBM 183"]
[Source "ChessBase"]
[SourceDate "2018.03.14"]
[SourceVersion "1"]
[SourceVersionDate "2018.03.14"]
[SourceQuality "1"]
[TimeControl "40/6000+30:20/3000+30:900+30"]

1. c4 {[%emt 0:00:00]} d6 {[%emt 0:01:26]} 2. Nc3 {[%emt 0:01:28]} e5 {[%emt 0:
00:35]} 3. g3 {[%emt 0:02:38]} Be7 {[%emt 0:00:56]} 4. Bg2 {[%emt 0:03:23]} f5
{[%emt 0:00:11]} 5. d4 {[%emt 0:08:27]} Nf6 {[%emt 0:00:15]} 6. dxe5 {[%emt 0:
00:45]} dxe5 {[%emt 0:00:06]} 7. Qxd8+ {[%emt 0:00:03]} Bxd8 {[%emt 0:00:04]}
8. b3 {[%emt 0:00:05]} O-O {[%emt 0:04:06]} 9. Bb2 {[%emt 0:05:28]} c6 {
[%emt 0:00:21]} 10. Nf3 {[%emt 0:00:24]} Bc7 {[%emt 0:02:23]} 11. O-O {[%emt 0:
01:16]} Na6 {[%emt 0:02:04]} 12. Rfd1 {[%emt 0:10:47]} Re8 {[%emt 0:02:55]} 13.
Rac1 {[%emt 0:01:52]} e4 {[%emt 0:00:40]} 14. Nd4 {[%emt 0:00:21]} f4 {[%emt 0:
00:19]} 15. Ndb5 {[%emt 0:08:19]} fxg3 {[%emt 0:08:39]} 16. hxg3 {[%emt 0:01:
20]} e3 {[%emt 0:32:51]} 17. f4 {[%emt 0:00:18]} Bg4 {[%emt 0:01:08]} 18. Nxc7
{[%emt 0:09:36]} Nxc7 {[%emt 0:00:10]} 19. Ba3 {[%emt 0:00:08]} Ne6 {[%emt 0:
04:13]} 20. Bd6 {[%emt 0:11:51]} g5 {[%emt 0:07:30]} 21. fxg5 {[%emt 0:06:01]}
Nxg5 {[%emt 0:00:05]} 22. Rd4 {[%emt 0:03:18]} Ne6 {[%emt 0:07:17]} 23. Rd3 {
[%emt 0:00:09]} Ng7 {[%emt 0:00:04]} 24. Rf1 {[%emt 0:02:57]} Nf5 {[%emt 0:00:
22]} 25. Bf3 {[%emt 0:00:36]} Bh3 {[%emt 0:01:49]} 26. Bg2 {[%emt 0:02:48]} Bg4
{[%emt 0:00:10]} 27. Rf4 {[%emt 0:01:03]} Re6 {[%emt 0:03:01]} 28. Bc7 {
[%emt 0:05:55]} h5 {[%emt 0:04:15]} 29. Bf3 {[%emt 0:01:14]} Ng7 {[%emt 0:08:
03]} 30. Bd8 {[%emt 0:01:37]} Nge8 {[%emt 0:03:45]} 31. Kg2 {[%emt 0:05:40]}
Bxf3+ {[%emt 0:00:30]} 32. Rxf3 {[%emt 0:00:47]} Ng4 {[%emt 0:00:06]} 33. Rf5 {
[%emt 0:03:27]} Ng7 {[%emt 0:02:15]} 34. Rf4 {[%emt 0:02:34]} Rg6 {[%emt 0:01:
48]} 35. Bh4 {[%emt 0:00:59]} Ne6 {[%emt 0:00:53]} 36. Rf5 {[%emt 0:00:09]} Re8
{[%emt 0:05:24]} 37. Ne4 {[%emt 0:02:29]} Ng7 {[%emt 0:04:20]} 38. Nf6+ {
[%emt 0:04:09]} Nxf6 {[%emt 0:00:06]} 39. Rxf6 {[%emt 0:00:02]} Rxf6 {[%emt 0:
02:42]} 40. Bxf6 {[%emt 0:00:00]} Nf5 {[%emt 0:00:28]} 41. Kf3 {[%emt 0:05:49]}
Kf7 {[%emt 0:02:53]} 42. Bg5 {[%emt 0:01:00]} Rg8 {[%emt 0:08:59]} 43. Bf4 {
[%emt 0:00:09]} Ke6 {[%emt 0:04:11]} 44. Rd1 {[%emt 0:00:07]} b5 {[%emt 0:14:
03]} 45. cxb5 {[%emt 0:07:46]} cxb5 {[%emt 0:00:03]} 46. Rh1 {[%emt 0:00:04]}
Rh8 {[%emt 0:01:56]} 47. Bxe3 {[%emt 0:00:25]} Nxe3 {[%emt 0:00:36]} 48. Kxe3 {
[%emt 0:00:09]} Kf5 {[%emt 0:00:03]} 49. Rh4 {[%emt 0:09:49]} Re8+ {[%emt 0:00:
07]} 50. Kf3 {[%emt 0:11:09]} Kg5 {[%emt 0:00:10]} 51. Rd4 {[%emt 0:00:18]}
Rf8+ {[%emt 0:00:11]} 52. Rf4 {[%emt 0:00:39]} Rc8 {[%emt 0:00:06]} 53. Re4 {
[%emt 0:01:40]} Rc3+ {[%emt 0:01:04]} 54. e3 {[%emt 0:06:22]} Rc5 {[%emt 0:02:
16]} 55. b4 {[%emt 0:02:36]} Rf5+ {[%emt 0:03:05]} 56. Rf4 {[%emt 0:00:03]} Rd5
{[%emt 0:00:47]} 57. Rf7 {[%emt 0:04:01]} a6 {[%emt 0:00:04]} 58. Rg7+ {
[%emt 0:03:09]} Kh6 {[%emt 0:00:09]} 59. Rc7 {[%emt 0:04:05]} Rd6 {[%emt 0:01:
37]} 60. Rc5 {[%emt 0:00:00]} Rf6+ {[%emt 0:00:21]} 61. Ke4 {[%emt 0:00:22]}
Rg6 {[%emt 0:01:40]} 62. Kf3 {[%emt 0:01:42]} Rf6+ {[%emt 0:02:16]} 63. Kg2 {
[%emt 0:00:01]} Rd6 {[%emt 0:03:51]} 64. Kh3 {[%emt 0:01:06]} Re6 {[%emt 0:00:
07]} 65. Rc3 {[%emt 0:00:06]} Kg5 {[%emt 0:00:43]} 66. a3 {[%emt 0:00:26]} Kg6
{[%emt 0:01:43]} 67. g4 {[%emt 0:01:32]} hxg4+ {[%emt 0:10:41]} 68. Kxg4 {
[%emt 0:00:01]} Kf6 {[%emt 0:00:07]} 69. Kf4 {[%emt 0:00:16]} Ke7 {[%emt 0:00:
01]} 70. e4 {[%emt 0:00:39]} Rh6 {[%emt 0:00:27]} 71. Rc7+ {[%emt 0:07:39]} Kd8
{[%emt 0:00:10]} 72. Ra7 {[%emt 0:00:17]} Kc8 {[%emt 0:00:04]} 73. e5 {[%emt 0:
01:53]} Kb8 {[%emt 0:01:43]} 74. Rd7 {[%emt 0:01:20]} a5 {[%emt 0:02:13]} 75.
bxa5 {[%emt 0:02:28]} Ra6 {[%emt 0:00:06]} 76. Rd5 {[%emt 0:01:38]} Rxa5 {
[%emt 0:00:07]} 77. e6 {[%emt 0:00:03]} Kc7 {[%emt 0:00:13]} 78. e7 {[%emt 0:
00:20]} Ra8 {[%emt 0:00:04]} 79. Kf5 {[%emt 0:00:16]} Kc6 {[%emt 0:00:08]} 80.
Rd8 {[%emt 0:00:08]} 1-0

[Event "Tata Steel-A 80th"]
[Site "Wijk aan Zee"]
[Date "2018.01.19"]
[Round "6"]
[White "Caruana, Fabiano"]
[Black "Matlakov, Maxim"]
[Result "1/2-1/2"]
[ECO "C88"]
[WhiteElo "2811"]
[BlackElo "2718"]
[PlyCount "75"]
[EventDate "2018.01.13"]
[EventType "tourn"]
[EventRounds "13"]
[EventCountry "NED"]
[EventCategory "20"]
[SourceTitle "CBM 183"]
[Source "ChessBase"]
[SourceDate "2018.03.14"]
[SourceVersion "1"]
[SourceVersionDate "2018.03.14"]
[SourceQuality "1"]
[TimeControl "40/6000+30:20/3000+30:900+30"]

1. e4 {[%emt 0:00:00]} e5 {[%emt 0:00:10]} 2. Nf3 {[%emt 0:00:00]} Nc6 {
[%emt 0:00:06]} 3. Bb5 {[%emt 0:00:00]} a6 {[%emt 0:00:16]} 4. Ba4 {[%emt 0:00:
00]} Nf6 {[%emt 0:00:13]} 5. O-O {[%emt 0:00:00]} Be7 {[%emt 0:00:11]} 6. Re1 {
[%emt 0:00:09]} b5 {[%emt 0:00:39]} 7. Bb3 {[%emt 0:00:06]} O-O {[%emt 0:00:19]
} 8. a4 {[%emt 0:00:11]} b4 {[%emt 0:00:29]} 9. d4 {[%emt 0:00:16]} d6 {
[%emt 0:00:12]} 10. dxe5 {[%emt 0:00:08]} Nxe5 {[%emt 0:00:25]} 11. Nxe5 {
[%emt 0:00:13]} dxe5 {[%emt 0:00:07]} 12. Qe2 {[%emt 0:00:17]} Bc5 {[%emt 0:02:
53]} 13. Be3 {[%emt 0:00:32]} Bd4 {[%emt 0:00:28]} 14. Bxd4 {[%emt 0:00:29]}
Qxd4 {[%emt 0:00:18]} 15. Rd1 {[%emt 0:00:25]} Bg4 {[%emt 0:15:20]} 16. Rxd4 {
[%emt 0:00:19]} Bxe2 {[%emt 0:02:00]} 17. Rd2 {[%emt 0:00:05]} Rfd8 {[%emt 0:
03:05]} 18. f3 {[%emt 0:00:57]} Rxd2 {[%emt 0:01:53]} 19. Nxd2 {[%emt 0:00:05]}
Rd8 {[%emt 0:00:09]} 20. Nc4 {[%emt 0:00:07]} Bxc4 {[%emt 0:00:44]} 21. Bxc4 {
[%emt 0:00:06]} a5 {[%emt 0:00:16]} 22. Rc1 {[%emt 0:00:25]} Kf8 {[%emt 0:28:
08]} 23. c3 {[%emt 0:00:41]} b3 {[%emt 0:05:06]} 24. Rb1 {[%emt 0:01:17]} Rb8 {
[%emt 0:16:21]} 25. Ra1 {[%emt 0:00:22]} Rd8 {[%emt 0:05:47]} 26. Ra3 {[%emt 0:
06:19]} Rd1+ {[%emt 0:01:58]} 27. Bf1 {[%emt 0:00:05]} Nd7 {[%emt 0:00:14]} 28.
Rxb3 {[%emt 0:00:11]} Nb6 {[%emt 0:00:56]} 29. Kf2 {[%emt 0:45:00]} Nxa4 {
[%emt 0:00:16]} 30. Rb8+ {[%emt 0:03:03]} Ke7 {[%emt 0:00:07]} 31. Rb5 {
[%emt 0:00:05]} Kd6 {[%emt 0:06:21]} 32. Be2 {[%emt 0:04:41]} Rd2 {[%emt 0:00:
57]} 33. Rxa5 {[%emt 0:00:07]} Nxb2 {[%emt 0:00:23]} 34. Ke3 {[%emt 0:00:34]}
Rc2 {[%emt 0:00:06]} 35. Rd5+ {[%emt 0:00:17]} Ke6 {[%emt 0:00:34]} 36. Rc5 {
[%emt 0:00:05]} Kd6 {[%emt 0:00:22]} 37. Rd5+ {[%emt 0:00:05]} Ke6 {[%emt 0:00:
03]} 38. Rc5 {[%emt 0:00:03]} 1/2-1/2

[Event "Tata Steel-A 80th"]
[Site "Wijk aan Zee"]
[Date "2018.01.19"]
[Round "6"]
[White "Giri, Anish"]
[Black "Anand, Viswanathan"]
[Result "1/2-1/2"]
[ECO "E03"]
[WhiteElo "2752"]
[BlackElo "2767"]
[PlyCount "39"]
[EventDate "2018.01.13"]
[EventType "tourn"]
[EventRounds "13"]
[EventCountry "NED"]
[EventCategory "20"]
[SourceTitle "CBM 183"]
[Source "ChessBase"]
[SourceDate "2018.03.14"]
[SourceVersion "1"]
[SourceVersionDate "2018.03.14"]
[SourceQuality "1"]
[TimeControl "40/6000+30:20/3000+30:900+30"]

1. d4 {[%emt 0:00:00]} Nf6 {[%emt 0:01:36]} 2. c4 {[%emt 0:00:00]} e6 {[%emt 0:
00:06]} 3. g3 {[%emt 0:00:00]} d5 {[%emt 0:01:19]} 4. Bg2 {[%emt 0:00:02]} dxc4
{[%emt 0:00:18]} 5. Qa4+ {[%emt 0:00:07]} Nbd7 {[%emt 0:03:21]} 6. Qxc4 {
[%emt 0:00:27]} a6 {[%emt 0:06:39]} 7. Qc2 {[%emt 0:02:01]} c5 {[%emt 0:00:40]}
8. Nf3 {[%emt 0:00:07]} b5 {[%emt 0:02:16]} 9. Ne5 {[%emt 0:00:21]} Nd5 {
[%emt 0:00:09]} 10. Nxd7 {[%emt 0:00:03]} Bxd7 {[%emt 0:00:28]} 11. Bxd5 {
[%emt 0:00:07]} exd5 {[%emt 0:00:06]} 12. dxc5 {[%emt 0:00:02]} Bc6 {[%emt 0:
01:14]} 13. O-O {[%emt 0:00:11]} d4 {[%emt 0:00:32]} 14. Bf4 {[%emt 0:01:13]}
Qd5 {[%emt 0:04:30]} 15. f3 {[%emt 0:00:11]} d3 {[%emt 0:00:27]} 16. exd3 {
[%emt 0:02:17]} Qxc5+ {[%emt 0:08:51]} 17. Qxc5 {[%emt 0:00:14]} Bxc5+ {
[%emt 0:00:07]} 18. Kg2 {[%emt 0:00:03]} Bd4 {[%emt 0:02:22]} 19. Nc3 {[%emt 0:
04:11]} Kd7 {[%emt 0:08:54]} 20. Rae1 {[%emt 0:07:48]} 1/2-1/2

[Event "Tata Steel-A 80th"]
[Site "Wijk aan Zee"]
[Date "2018.01.19"]
[Round "6"]
[White "Hou, Yifan"]
[Black "Karjakin, Sergey"]
[Result "1/2-1/2"]
[ECO "B19"]
[WhiteElo "2680"]
[BlackElo "2753"]
[PlyCount "63"]
[EventDate "2018.01.13"]
[EventType "tourn"]
[EventRounds "13"]
[EventCountry "NED"]
[EventCategory "20"]
[SourceTitle "CBM 183"]
[Source "ChessBase"]
[SourceDate "2018.03.14"]
[SourceVersion "1"]
[SourceVersionDate "2018.03.14"]
[SourceQuality "1"]
[TimeControl "40/6000+30:20/3000+30:900+30"]

1. e4 {[%emt 0:00:00]} c6 {[%emt 0:00:05]} 2. d4 {[%emt 0:00:00]} d5 {[%emt 0:
00:05]} 3. Nc3 {[%emt 0:00:00]} dxe4 {[%emt 0:00:07]} 4. Nxe4 {[%emt 0:00:03]}
Bf5 {[%emt 0:00:05]} 5. Ng3 {[%emt 0:00:05]} Bg6 {[%emt 0:00:04]} 6. h4 {
[%emt 0:00:05]} h6 {[%emt 0:00:07]} 7. Nf3 {[%emt 0:00:04]} e6 {[%emt 0:00:18]}
8. Ne5 {[%emt 0:00:19]} Bh7 {[%emt 0:00:06]} 9. Bd3 {[%emt 0:00:06]} Bxd3 {
[%emt 0:00:07]} 10. Qxd3 {[%emt 0:00:04]} Nd7 {[%emt 0:00:07]} 11. f4 {[%emt 0:
01:28]} Be7 {[%emt 0:00:43]} 12. Bd2 {[%emt 0:07:26]} Nxe5 {[%emt 0:00:27]} 13.
fxe5 {[%emt 0:00:06]} Bxh4 {[%emt 0:00:03]} 14. O-O-O {[%emt 0:00:40]} Bxg3 {
[%emt 0:00:06]} 15. Qxg3 {[%emt 0:00:05]} Ne7 {[%emt 0:00:06]} 16. Qxg7 {
[%emt 0:19:08]} Rg8 {[%emt 0:00:15]} 17. Qf6 {[%emt 0:00:04]} Nf5 {[%emt 0:12:
44]} 18. Bxh6 {[%emt 0:02:50]} Qxf6 {[%emt 0:18:23]} 19. exf6 {[%emt 0:00:05]}
Rd8 {[%emt 0:06:24]} 20. Bf4 {[%emt 0:12:45]} Nxd4 {[%emt 0:14:14]} 21. Rd2 {
[%emt 0:20:02]} c5 {[%emt 0:03:57]} 22. c3 {[%emt 0:03:10]} Nc6 {[%emt 0:00:47]
} 23. Bd6 {[%emt 0:02:40]} b6 {[%emt 0:01:20]} 24. b4 {[%emt 0:04:04]} cxb4 {
[%emt 0:05:01]} 25. cxb4 {[%emt 0:00:33]} a5 {[%emt 0:00:04]} 26. b5 {[%emt 0:
16:40]} Na7 {[%emt 0:00:07]} 27. a4 {[%emt 0:01:21]} Nc8 {[%emt 0:00:05]} 28.
Rhd1 {[%emt 0:06:16]} Rg4 {[%emt 0:00:36]} 29. Bb8 {[%emt 0:00:08]} Rxd2 {
[%emt 0:10:51]} 30. Rxd2 {[%emt 0:00:05]} Rxa4 {[%emt 0:00:23]} 31. Rc2 {
[%emt 0:00:07]} Kd8 {[%emt 0:00:05]} 32. Rd2+ {[%emt 0:05:10]} 1/2-1/2

[Event "Tata Steel-A 80th"]
[Site "Wijk aan Zee"]
[Date "2018.01.19"]
[Round "6"]
[White "Kramnik, Vladimir"]
[Black "Jones, Gawain C B"]
[Result "1/2-1/2"]
[ECO "A49"]
[WhiteElo "2787"]
[BlackElo "2640"]
[Annotator "Yermolinsky,A"]
[PlyCount "82"]
[EventDate "2018.01.13"]
[EventType "tourn"]
[EventRounds "13"]
[EventCountry "NED"]
[EventCategory "20"]
[SourceTitle "CBM 183"]
[Source "ChessBase"]
[SourceDate "2018.03.14"]
[SourceVersion "1"]
[SourceVersionDate "2018.03.14"]
[SourceQuality "1"]
[TimeControl "40/6000+30:20/3000+30:900+30"]

1. d4 {[%emt 0:00:00]} Nf6 {[%emt 0:00:29]} 2. Nf3 {[%emt 0:00:01]} g6 {
[%emt 0:00:12]} 3. g3 {[%emt 0:00:05]} Bg7 {[%emt 0:00:06]} 4. Bg2 {[%emt 0:00:
03]} O-O {[%emt 0:00:08]} 5. O-O {[%emt 0:00:05]} d6 {[%emt 0:00:08]} 6. Re1 {
[%emt 0:00:07]} c6 $6 {[%emt 0:09:34]} ({I think} 6... c5 {represents Black's
best option here.}) 7. e4 {[%emt 0:03:48]} Qc7 {[%emt 0:00:07]} ({Probably} 
7... Bg4 {has to be played, but parting with the bishop is a concession,
particularly here where, unlike in the KID, the white c-pawn can give
protection to the d4-pawn.}) 8. e5 {[%emt 0:06:58] A novelty, but the reason
it had not been played before is because good players never had a crack at
this position.} dxe5 {[%emt 0:04:50]} 9. dxe5 {[%emt 0:00:05]} Nd5 {[%emt 0:00:
53]} 10. Qe2 $14 {[%emt 0:01:45] Sometimes White goes from an early e4-e5 in
various variations of the Pirc, but here with the fianchettoed light-squared
bishop he has the perfect version of it.} b5 {[%emt 0:05:17]} (10... Bg4 11. c4
Nb6 12. Bf4 Qc8 13. Nc3 c5) 11. Nbd2 {[%emt 0:11:34]} a5 {[%emt 0:13:23]} 12.
c4 {[%emt 0:09:09]} Nb4 {[%emt 0:09:29]} 13. Nd4 {[%emt 0:03:08]} Rd8 $1 {
[%emt 0:02:15] I have to give credit to Gawain Jones for his spirited defence.}
14. a3 {[%emt 0:01:13]} Rxd4 {[%emt 0:03:37]} 15. axb4 {[%emt 0:00:08]} bxc4 {
[%emt 0:05:53]} 16. Nxc4 {[%emt 0:05:38]} Bg4 $1 {[%emt 0:07:12] Black's
counterplay isn't so easy to contain.} 17. Qf1 $5 {[%emt 0:11:47] Watch
Kramnik's solution to the problem.} (17. Qc2 Bf5 18. Be4 Be6 19. Nxa5 Rxb4 20.
Bd2 Rd4 {is a bit confusing.}) ({And the same goes for} 17. f3 Be6 18. b3 a4
19. f4 axb3 $1 20. Rxa8 Rxc4) 17... Bf5 {[%emt 0:03:11]} 18. Be3 $1 {[%emt 0:
02:23] There's nothing Vladimir values more in chess than an opportunity to
take away the opponent's counterplay, even at the cost of a small material
concession. We have seen many of his games with exchange sacrifices, and now
Kramnik is happy to part with his queen.} Bd3 {[%emt 0:00:47]} 19. Bxd4 {
[%emt 0:00:15]} Bxf1 {[%emt 0:00:06]} 20. Bxf1 {[%emt 0:00:58]} c5 {[%emt 0:10:
30]} 21. Bxc5 {[%emt 0:04:51]} Nd7 {[%emt 0:03:53]} 22. Bd4 {[%emt 0:01:00]} a4
{[%emt 0:00:46]} 23. b5 {[%emt 0:04:53]} Rb8 {[%emt 0:01:51]} 24. Rec1 {
[%emt 0:10:25]} h5 $16 {[%emt 0:06:57]} 25. b6 $6 {[%emt 0:09:07] Perhaps that
pawn spoke too soon.} ({Further preparation, beginning with} 25. Bg2 {was in
order.}) 25... Qc6 {[%emt 0:05:05]} 26. Na5 {[%emt 0:04:41]} (26. Bg2 Qb5)
26... Qe6 {[%emt 0:03:36]} 27. Bc4 {[%emt 0:05:58]} Qg4 {[%emt 0:00:34]} 28.
Nc6 {[%emt 0:01:45]} Rxb6 {[%emt 0:02:15] Jones was happy to get rid of that
pawn no matter the cost.} 29. Bxb6 {[%emt 0:04:37]} Nxb6 {[%emt 0:00:03]} 30.
Nxe7+ {[%emt 0:00:43]} Kf8 {[%emt 0:00:02]} 31. Nd5 {[%emt 0:03:30]} Bxe5 $5 {
[%emt 0:02:35] Now Gawain shows his ambitions.} (31... Nxd5 32. Bxd5 Bxe5 33.
Rc4 Qe2 34. Rcxa4 Bxb2 {would be enough for a draw.}) 32. Nxb6 {[%emt 0:03:03]}
Bxb2 {[%emt 0:00:03]} 33. h3 $6 {[%emt 0:01:43] Being short of time Kramnik
decides to eliminate the a-pawn.} (33. Rab1 Bxc1 34. Rxc1 a3 35. Nd5 Qd4 36.
Ne3 {would be safe for him anyway, but I'm not sure White would have been able
to generate winning chances from there.}) 33... Qxh3 {[%emt 0:04:40]} 34. Bf1 {
[%emt 0:00:20]} Qe6 {[%emt 0:00:13]} 35. Nxa4 {[%emt 0:00:59]} Bxa1 {[%emt 0:
00:39]} 36. Rxa1 {[%emt 0:00:01]} h4 {[%emt 0:00:26]} 37. Nc5 {[%emt 0:01:06]}
Qd5 {[%emt 0:01:05]} 38. Rc1 {[%emt 0:00:34]} hxg3 {[%emt 0:00:17]} 39. Nd3 {
[%emt 0:00:26]} gxf2+ {[%emt 0:05:15]} 40. Kxf2 {[%emt 0:00:00]} Qd4+ {[%emt 0:
00:22]} 41. Ke2 {[%emt 0:08:45]} Qg4+ {[%emt 0:04:00]} 1/2-1/2

[Event "Tata Steel-A 80th"]
[Site "Wijk aan Zee"]
[Date "2018.01.20"]
[Round "7"]
[White "Jones, Gawain C B"]
[Black "Svidler, Peter"]
[Result "1/2-1/2"]
[ECO "B22"]
[WhiteElo "2640"]
[BlackElo "2768"]
[PlyCount "67"]
[EventDate "2018.01.13"]
[EventType "tourn"]
[EventRounds "13"]
[EventCountry "NED"]
[EventCategory "20"]
[SourceTitle "CBM 183"]
[Source "ChessBase"]
[SourceDate "2018.03.14"]
[SourceVersion "1"]
[SourceVersionDate "2018.03.14"]
[SourceQuality "1"]
[TimeControl "40/6000+30:20/3000+30:900+30"]

1. e4 {[%emt 0:00:00]} c5 {[%emt 0:00:14]} 2. c3 {[%emt 0:00:01]} Nf6 {[%emt 0:
02:18]} 3. e5 {[%emt 0:00:06]} Nd5 {[%emt 0:00:08]} 4. Nf3 {[%emt 0:00:06]} e6
{[%emt 0:05:06]} 5. Bc4 {[%emt 0:00:26]} d6 {[%emt 0:03:34]} 6. d4 {[%emt 0:03:
13]} cxd4 {[%emt 0:02:17]} 7. cxd4 {[%emt 0:00:09]} Nc6 {[%emt 0:00:33]} 8. O-O
{[%emt 0:01:12]} Be7 {[%emt 0:02:45]} 9. exd6 {[%emt 0:00:15]} Qxd6 {[%emt 0:
02:25]} 10. Nc3 {[%emt 0:00:09]} O-O {[%emt 0:01:56]} 11. Re1 {[%emt 0:02:42]}
Rd8 {[%emt 0:08:21]} 12. a3 {[%emt 0:04:04]} a6 {[%emt 0:05:01]} 13. Be3 {
[%emt 0:00:58]} Nxe3 {[%emt 0:07:12]} 14. fxe3 {[%emt 0:00:44]} b6 {[%emt 0:00:
05]} 15. Rc1 {[%emt 0:18:12]} Bb7 {[%emt 0:12:52]} 16. Ba2 {[%emt 0:20:22]}
Rac8 {[%emt 0:03:29]} 17. Ne4 {[%emt 0:03:32]} Qd7 {[%emt 0:01:33]} 18. Nfg5 {
[%emt 0:00:44]} Bxg5 {[%emt 0:01:12]} 19. Nxg5 {[%emt 0:05:15]} h6 {[%emt 0:00:
05]} 20. Nf3 {[%emt 0:04:59]} Qd6 {[%emt 0:01:41]} 21. Rf1 {[%emt 0:01:35]} Rc7
{[%emt 0:02:32]} 22. Qe2 {[%emt 0:08:35]} Rdc8 {[%emt 0:03:58]} 23. Rcd1 {
[%emt 0:04:25]} Na5 {[%emt 0:06:49]} 24. Bb1 {[%emt 0:01:35]} Nc4 {[%emt 0:01:
15]} 25. Bd3 {[%emt 0:07:25]} b5 {[%emt 0:11:12]} 26. Rf2 {[%emt 0:00:49]} f5 {
[%emt 0:03:49]} 27. e4 {[%emt 0:03:26]} fxe4 {[%emt 0:03:14]} 28. Bxe4 {
[%emt 0:00:04]} Bxe4 {[%emt 0:00:09]} 29. Qxe4 {[%emt 0:00:04]} Qd5 {[%emt 0:
03:27]} 30. Re1 {[%emt 0:02:04]} Qxe4 {[%emt 0:01:22]} 31. Rxe4 {[%emt 0:00:03]
} Rc6 {[%emt 0:00:22]} 32. Rfe2 {[%emt 0:01:38]} a5 {[%emt 0:01:50]} 33. Ne5 {
[%emt 0:03:24]} Rd6 {[%emt 0:00:59]} 34. Nxc4 {[%emt 0:02:12]} 1/2-1/2